Cogmind - Beta 16.1 @@@ ROGUE MODE // 2026.03.01 @ 17:43:33 Player: ae Result: Destroyed by P-80 Master with Gamma Rifle Performance ------------- Evolutions (9) 4500 Regions Visited (25) 5000 Robots Destroyed (98) 490 Value Destroyed (2434) 2434 Prototype IDs (67) 1340 Alien Tech Used (6) 1200 Bonus (7136) 7136 TOTAL SCORE: 22100 Bonus ------- High Alert Combat Kills 60 Follower Combat Kills 493 Registered with UFD 300 Met Data Miner 300 Met Warlord at Base 500 MAIN.C Attacked Warlord 500 Used Core Reset Matrix 3000 Met Sigix 2000 Friendly Fire -17 Cogmind --------- Core Integrity 0/1600 Matter 282/300 Energy 85/100 System Corruption 14% Temperature Cool (0) Movement Core (50) Location -1/Access Parts ------- > --- POWER (1) -------- (None) > --- PROPULSION (5) --- (None) > --- UTILITY (17) ----- Advanced Signal Interpreter Advanced Signal Interpreter Advanced Melee Analysis Suite Advanced Melee Analysis Suite Improved Launcher Guidance Computer Hacking Suite A0-MCA's Component Scanner > --- WEAPON (2) ------- (None) > --- INVENTORY (5) ---- Fusion Compressor Particle Reactor Enhanced Hardcell Cannon Molecular Scythe Peak State ------------ > --- POWER ------------ Micro Antimatter Reactor > --- PROPULSION ------- Cooled Nuclear Pulse Thruster Cooled Nuclear Pulse Thruster Impulse Thruster Electron Diverter Experimental Q-thruster > --- UTILITY ---------- Advanced Cryofiber Web Advanced Visual Processing Unit Advanced Sensor Array Advanced Signal Interpreter Advanced Signal Interpreter Advanced Melee Analysis Suite Advanced Melee Analysis Suite Advanced Melee Analysis Suite Advanced Melee Analysis Suite Advanced Melee Analysis Suite Improved Launcher Guidance Computer EM Shield Hacking Suite Hacking Suite System Shield Advanced System Shield A0-MCA's Component Scanner > --- WEAPON ----------- Maul > --- INVENTORY -------- Matter Filter Transdimensional Reconstructor Supercharged TR Enhanced Hardcell Cannon [Rating: 139] Favorites ----------- Power Ion Engine Engine Ion Engine Power Core Fusion Compressor Reactor Micro Antimatter Reactor Propulsion Wheel Treads Light Treads Leg Flexi-carbon Leg Wheel Wheel Hover Unit Cooled Antigrav System Flight Unit Electron Diverter Utility Cargo Storage Unit Device Deep Structural Scanner Storage Cargo Storage Unit Processor Advanced Melee Analysis Suite Hackware System Shield Protection Enhanced Scrap Shield Weapon Beam Cannon Energy Gun Medium Laser Energy Cannon Beam Cannon Ballistic Gun Light Assault Rifle Ballistic Cannon Enhanced Gauss Cannon Launcher Grenade Launcher Special Weapon Improved Plasma Cutter Impact Weapon Maul Slashing Weapon Molecular Scythe Piercing Weapon Spear Build | -11 -10 -10 -9 -9 -6 -6 -6 -6 -5 -5 -5 -5 -5 -4 -4 -4 -4 -4 -4 -4 -3 -3 -2 -2 -1 ------- Run | Yrd Mat Sub Rec Scr Fac Low Low Dat Pro Fac Upp Upp War Pro Fac Was Fac Upp Upp Zhi Pro Res Res Qua Acc Slots Evolved 18 | . . . . . 8 . . . . 2 . . . . 2 . . . . . . 2 2 . 2 Power . | . . . . . . . . . . . . . . . . . . . . . . . . . . Propulsion 3 | . . . . . 2 . . . . . . . . . . . . . . . . . . . 1 Utility 15 | . . . . . 6 . . . . 2 . . . . 2 . . . . . . 2 2 . 1 Weapon . | . . . . . . . . . . . . . . . . . . . . . . . . . . Parts Attached 118 | 7 7 1 . 1 33 3 . . 2 3 1 . 12 4 13 . 2 2 . 4 . 9 5 . 9 Power 14 | 1 1 . . . 2 2 . . . 1 . . 1 . 2 . . . . . . 2 . . 2 Engine 10 | 1 1 . . . 2 2 . . . 1 . . 1 . 2 . . . . . . . . . . Core 1 | . . . . . . . . . . . . . . . . . . . . . . . . . 1 Reactor 3 | . . . . . . . . . . . . . . . . . . . . . . 2 . . 1 Propulsion 32 | 2 2 1 . . 9 . . . . . . . 4 4 4 . 1 . . 3 . . 1 . 1 Treads 3 | 2 . . . . 1 . . . . . . . . . . . . . . . . . . . . Leg 1 | . . . . . 1 . . . . . . . . . . . . . . . . . . . . Wheel 6 | . 2 1 . . 3 . . . . . . . . . . . . . . . . . . . . Hover 2 | . . . . . . . . . . . . . 2 . . . . . . . . . . . . Flight 20 | . . . . . 4 . . . . . . . 2 4 4 . 1 . . 3 . . 1 . 1 Utility 49 | 2 1 . . . 14 1 . . 1 2 1 . 4 . 6 . 1 1 . 1 . 6 4 . 4 Device 18 | 1 . . . . 3 . . . 1 . 1 . 3 . 3 . . 1 . . . 2 . . 3 Storage 3 | 1 1 . . . 1 . . . . . . . . . . . . . . . . . . . . Processor 15 | . . . . . 4 . . . . 2 . . . . 2 . 1 . . . . 2 4 . . Hackware 7 | . . . . . 1 . . . . . . . 1 . 1 . . . . 1 . 2 . . 1 Protection 6 | . . . . . 5 1 . . . . . . . . . . . . . . . . . . . Artifact . | . . . . . . . . . . . . . . . . . . . . . . . . . . Weapon 23 | 2 3 . . 1 8 . . . 1 . . . 3 . 1 . . 1 . . . 1 . . 2 Energy Gun 2 | 1 . . . . . . . . . . . . . . 1 . . . . . . . . . . Energy Cannon 1 | . 1 . . . . . . . . . . . . . . . . . . . . . . . . Ballistic Gun 6 | 1 1 . . 1 3 . . . . . . . . . . . . . . . . . . . . Ballistic Cannon 2 | . . . . . . . . . . . . . . . . . . 1 . . . . . . 1 Launcher 5 | . 1 . . . 3 . . . 1 . . . . . . . . . . . . . . . . Special Weapon 2 | . . . . . . . . . . . . . 2 . . . . . . . . . . . . Impact Weapon 1 | . . . . . . . . . . . . . . . . . . . . . . 1 . . . Slashing Weapon 1 | . . . . . . . . . . . . . . . . . . . . . . . . . 1 Piercing Weapon 3 | . . . . . 2 . . . . . . . 1 . . . . . . . . . . . . Special Melee Weapon . | . . . . . . . . . . . . . . . . . . . . . . . . . . Unidentified Prototypes 13 | . . . . . . 1 . . . . . . 8 . 1 . . . . 1 . 1 . 1 . Parts Lost 74 | . 1 1 . . 26 . . . 1 2 . 5 . 5 6 2 . . . . . 4 . 2 19 Power 8 | . 1 . . . 3 . . . . . . 1 . 1 . . . . . . . 1 . . 1 Propulsion 25 | . . 1 . . 10 . . . 1 . . 2 . 2 3 . . . . . . . . . 6 Utility 30 | . . . . . 7 . . . . 1 . 2 . 1 1 2 . . . . . 3 . 2 11 Weapon 11 | . . . . . 6 . . . . 1 . . . 1 2 . . . . . . . . . 1 Highest Loss Streak 22 | . 1 1 . . 22 . . . 1 2 . 3 . 3 3 2 . . . . . 3 . 2 14 To Critical Strikes 1 | . . 1 . . . . . . . . . . . . . . . . . . . . . . . Average Backups 22 | 5 14 28 28 28 21 5 5 5 4 3 4 4 3 3 3 3 3 3 4 5 4 4 4 5 4 Power 1 | . 1 2 2 1 . . . . . . . . . . . . . . . . . . . . . Propulsion 4 | 4 5 5 5 4 5 . . . . . . . . . . 1 1 1 1 1 1 1 2 3 . Utility 5 | . 3 6 7 6 4 2 2 2 1 1 2 2 2 1 1 1 1 . . . . . . . . Weapon 11 | . 4 14 14 14 10 3 3 3 2 2 2 2 1 1 . . . . 1 2 1 . . 1 1 Tool/Special . | . . . . . . . . . . . . . . . . . . . . . . . . . . Unused Backups 26 | . 2 4 . 1 6 . . . 1 2 . . 1 . 1 . . . . . . 1 3 2 2 Power 1 | . . . . . . . . . . 1 . . . . . . . . . . . . . . . Propulsion 6 | . . 3 . . . . . . . . . . . . 1 . . . . . . . 1 1 . Utility 5 | . . 1 . . 1 . . . . 1 . . . . . . . . . . . . . . 2 Weapon 13 | . 2 . . 1 5 . . . 1 . . . 1 . . . . . . . . 1 2 . . Tool/Special 1 | . . . . . . . . . . . . . . . . . . . . . . . . 1 . Average Slot Usage (%) 64 | . 89 85 85 59 60 77 80 80 74 73 57 41 67 68 73 76 74 82 84 82 84 78 90 95 81 Engine 11 | . 13 14 14 14 3 3 6 6 6 5 5 2 3 1 2 5 5 5 5 5 5 . . . . Wheel 21 | . 19 28 28 28 12 . . . . . . . . . . . . . . . . . . . . Flight 3 | . . . . . 4 20 20 20 17 11 11 5 4 12 17 21 21 21 21 21 21 19 17 17 15 Device 3 | . 4 . . . 5 13 13 13 18 17 16 12 21 20 22 17 17 23 21 17 15 10 13 13 8 Storage 11 | . 14 14 14 13 8 6 6 6 1 . . . . . . . . . . . . . . . . Processor 4 | . . . . . 5 13 13 13 13 21 17 13 11 11 17 21 25 26 26 26 26 27 38 43 38 Hackware 1 | . . . . . . 6 6 6 6 5 5 5 10 11 11 11 5 5 5 6 10 10 13 13 14 Energy Cannon 1 | . 8 14 14 1 . . . . . . . . . . . . . . . . . . . . . Launcher 1 | . 1 12 14 1 4 . . . . . . . . 1 . . . . . . . . . . . Peak Build Rating 139 | 9 10 11 11 12 45 53 53 53 54 62 42 42 95 87 104 93 86 98 99 99 103 111 129 130 139 Average Rating 25 | 5 8 10 11 11 31 51 53 53 47 59 41 30 78 70 81 83 82 92 98 97 97 103 123 128 118 On Entrance 59 | . 9 10 11 11 11 42 53 53 53 51 42 42 23 79 58 93 77 86 98 99 97 97 107 129 118 Avg Prop Armor Cover (%) 12 | . . . . 16 20 . . . . . . . 8 13 13 9 13 12 1 1 . 3 14 . 11 Naked Turns . | . . . . . . . . . . . . . . . . . . . . . . . . . . Heaviest Build 173 | 12 149 151 151 151 173 25 24 24 24 30 13 13 17 27 20 6 6 20 20 20 20 28 15 15 20 Greatest Support 60 | 40 40 26 26 26 60 14 14 14 14 12 12 12 26 13 25 29 29 22 29 29 20 29 26 26 33 Greatest Overweight (x) 48 | . 14 7 5 48 7 1 1 1 2 2 1 1 1 4 3 . . . . 3 . 8 4 . 6 Average Overweight (x) 3 | . 4 5 5 15 1 . 1 1 . 1 . . . . . . . . . . . . . . . Largest Inventory Capacity 30 | 8 30 30 30 30 30 5 5 5 5 5 5 5 5 5 5 5 5 5 5 5 5 5 5 5 5 Average Capacity 24 | 7 23 30 30 29 24 5 5 5 5 5 5 5 5 5 5 5 5 5 5 5 5 5 5 5 5 Most Carried 30 | 8 27 30 30 30 30 5 5 5 5 5 5 5 5 5 5 5 5 5 5 5 5 5 5 5 5 Average Carried 23 | 6 14 29 30 29 22 4 5 5 4 3 5 4 4 4 4 4 4 4 4 5 4 4 4 4 4 Final Capacity 30 | 8 30 30 30 30 5 5 5 5 5 5 5 5 5 5 5 5 5 5 5 5 5 5 5 5 5 Final Carried 30 | 8 27 30 30 30 5 5 5 5 3 5 5 5 5 5 4 5 5 4 5 5 5 4 5 5 4 Class Distribution -------------------- 77% | Hauler-Mutant 7% | Mutant 4% | Hacker-Mutant 3% | Hacker-Scout Dominant Class ---------------- Hauler-Mutant | -10/Materials Hauler-Mutant | -10/Subcaves Hauler-Mutant | -9/Recycling Hauler-Mutant | -9/Scraptown Hauler-Mutant | -6/Factory Mutant | -6/Lower Caves Mutant | -6/Lower Caves Mutant | -6/Data Miner Scout | -5/Proximity Caves Assassin | -5/Factory Mutant | -5/Upper Caves Mutant | -5/Upper Caves Hacker-Mutant | -5/Warlord Hacker-Mutant | -4/Proximity Caves Hacker-Scout | -4/Factory Sprinter | -4/Waste Mutant | -4/Factory Scout | -4/Upper Caves Scout | -4/Upper Caves Sprinter | -4/Zhirov Hacker-Scout | -3/Proximity Caves Hacker-Sprinter | -3/Research Hacker-Scout | -2/Research Hacker-Scout | -2/Quarantine Hacker-Sprinter | -1/Access Resources | -11 -10 -10 -9 -9 -6 -6 -6 -6 -5 -5 -5 -5 -5 -4 -4 -4 -4 -4 -4 -4 -3 -3 -2 -2 -1 ----------- Run | Yrd Mat Sub Rec Scr Fac Low Low Dat Pro Fac Upp Upp War Pro Fac Was Fac Upp Upp Zhi Pro Res Res Qua Acc Matter Collected 2570 | 292 172 111 . 80 287 201 100 . 104 . 56 62 144 106 126 . . 143 38 . . 150 270 47 81 Remotely . | . . . . . . . . . . . . . . . . . . . . . . . . . . Salvage Created 2338 | 183 307 240 . . 447 93 . . 104 . . 15 . 163 218 . . 30 . . . 173 259 54 52 Parts 130 | 8 26 18 . . 34 1 . . 5 . . 2 . 17 11 . . . . . . 1 3 1 3 Haulers Intercepted 1 | . 1 . . . . . . . . . . . . . . . . . . . . . . . . Recyclers Shooed 2 | 1 . . . . . . . . . . . . . . . . . . . . . 1 . . . Parts Field Recycled . | . . . . . . . . . . . . . . . . . . . . . . . . . . Retrieved Matter . | . . . . . . . . . . . . . . . . . . . . . . . . . . Parts Self-Destructed 23 | . . 4 . . . . . . 4 . . 1 . 14 . . . . . . . . . . . Prevented 1 | . . . . . . . 1 . . . . . . . . . . . . . . . . . . Parts Restored . | . . . . . . . . . . . . . . . . . . . . . . . . . . Kills | -11 -10 -10 -9 -9 -6 -6 -6 -6 -5 -5 -5 -5 -5 -4 -4 -4 -4 -4 -4 -4 -3 -3 -2 -2 -1 ------- Run | Yrd Mat Sub Rec Scr Fac Low Low Dat Pro Fac Upp Upp War Pro Fac Was Fac Upp Upp Zhi Pro Res Res Qua Acc Combat Hostiles Destroyed 61 | . 11 12 . . 18 . . . 4 . . 2 . 13 1 . . . . . . . . . . Melee 3 | . . . . . 2 . . . . . . . . . 1 . . . . . . . . . . Guns 6 | . 5 . . . 1 . . . . . . . . . . . . . . . . . . . . Cannons 5 | . 1 4 . . . . . . . . . . . . . . . . . . . . . . . AOE 46 | . 5 7 . . 15 . . . 4 . . 2 . 13 . . . . . . . . . . . Classes Destroyed 14 | 3 6 1 . . 2 . . . . . . . . . 1 . . 1 . . . . . . . Worker 10 | 1 1 . . . 4 . . . . . . . . . 1 . . . . . . 3 . . . Builder 9 | . 2 . . . 1 . . . . . . . . . . . . . . . . . 4 1 1 Tunneler 4 | 4 . . . . . . . . . . . . . . . . . . . . . . . . . Hauler 1 | . 1 . . . . . . . . . . . . . . . . . . . . . . . . Recycler 5 | 1 1 . . . . . . . . . . . . . 1 . . . . . . 1 1 . . Operator 1 | . 1 . . . . . . . . . . . . . . . . . . . . . . . . Watcher 7 | . 1 . . . 2 . . . . . . . . . . . . . . . . . 2 1 1 Swarmer 44 | . 9 7 . . 11 . . . 2 . . 2 . 13 . . . . . . . . . . . Grunt 9 | . 2 . . . 5 . . . 2 . . . . . . . . . . . . . . . . Duelist 1 | . . . . . 1 . . . . . . . . . . . . . . . . . . . . Programmer 1 | . . . . . . . . . . . . . . . 1 . . . . . . . . . . Behemoth 1 | . . . . . 1 . . . . . . . . . . . . . . . . . . . . Subdweller 5 | . . 5 . . . . . . . . . . . . . . . . . . . . . . . Packrat 1 | . . . . . . 1 . . . . . . . . . . . . . . . . . . . Samaritan 2 | . . . . . . . . . . . . . . . . . . 2 . . . . . . . Best Kill Streak 10 | 2 5 4 . . 8 . . . 4 . . 1 . 10 1 . . . . . . 3 3 1 1 Combat Bots Only 10 | . 4 4 . . 4 . . . 4 . . 1 . 10 1 . . . . . . . . . . Max Kills in Single Turn 5 | 1 2 3 . . 5 1 . . 2 . . 1 . 5 1 . . 1 . . . 1 1 1 1 Gunslinging . | . . . . . . . . . . . . . . . . . . . . . . . . . . Exploded 5 | . 2 2 . . 4 . . . 2 . . 1 . 5 . . . . . . . . . . . Melee 1 | . . . . . 1 . . . . . . . . . 1 . . . . . . . . . . Uniques/NPCs Destroyed . | . . . . . . . . . . . . . . . . . . . . . . . . . . Combat | -11 -10 -10 -9 -9 -6 -6 -6 -6 -5 -5 -5 -5 -5 -4 -4 -4 -4 -4 -4 -4 -3 -3 -2 -2 -1 -------- Run | Yrd Mat Sub Rec Scr Fac Low Low Dat Pro Fac Upp Upp War Pro Fac Was Fac Upp Upp Zhi Pro Res Res Qua Acc Hostile Shots Fired 716 | . 43 28 . . 176 . 6 . 21 8 . 24 6 42 96 . . . 2 . . 49 3 25 187 Missed 307 | . 13 12 . . 57 . 2 . 12 4 . 8 4 19 49 . . . 1 . . 24 2 15 85 Hits 409 | . 30 16 . . 119 . 4 . 9 4 . 16 2 23 47 . . . 1 . . 25 1 10 102 Melee 11 | . . . . . 8 . . . . 3 . . . . . . . . . . . . . . . Projectile 398 | . 30 16 . . 111 . 4 . 9 1 . 16 2 23 47 . . . 1 . . 25 1 10 102 AOE 8 | . . . . . 5 . . . . . . . 2 . . . . . . . . . . . 1 Critical Strikes 20 | . . 3 . . 9 . . . . . . . . 1 1 . . . . . . 4 . . 2 Damage Taken 9069 | . 345 288 . . 2822 . 86 . 155 95 . 300 116 358 1164 42 . . 12 . . 526 27 320 2413 Core 3455 | . 73 118 . . 506 . . . 47 . . 141 40 80 698 . . . . . . 122 27 110 1493 Absorbed by Shields 163 | . . . . . . . . . . . . . . 163 . . . . . . . . . . . Redirected to Shielding 104 | . . . . . 104 . . . . . . . . . . . . . . . . . . . . Ignored by Resistances 443 | . . . . . . . . . . . . . . . 73 . . . . . . 55 . 11 304 Core Remaining (%) 64 | 100 . . . 23 . . . . 34 . . . . 73 . . . . . . 39 90 . 90 . Volleys Fired 156 | 22 44 22 3 . 22 . . . 5 . . 3 1 5 6 . . 13 . . 2 7 . . 1 Largest 2 | 2 2 2 1 . 2 . . . 1 . . 1 1 1 1 . . 1 . . 1 1 . . 1 Hottest 100 | 70 90 90 30 . 100 . . . 39 . . 39 39 39 65 . . 47 . . 47 47 . . 58 Shots Fired 233 | 44 85 26 3 . 32 . . . 5 . . 3 1 5 6 . . 13 . . 2 7 . . 1 Gun 123 | 44 63 . . . 10 . . . . . . . . . 6 . . . . . . . . . . Cannon 59 | . 17 17 . . 2 . . . . . . . . . . . . 13 . . 2 7 . . 1 Launcher 50 | . 5 9 3 . 20 . . . 5 . . 3 1 4 . . . . . . . . . . . Special 1 | . . . . . . . . . . . . . . 1 . . . . . . . . . . . Kinetic 99 | 22 39 . . . 15 . . . . . . . . . . . . 13 . . 2 7 . . 1 Thermal 83 | 22 41 17 . . 2 . . . . . . . . 1 . . . . . . . . . . . Explosive 43 | . 5 9 3 . 13 . . . 5 . . 3 1 4 . . . . . . . . . . . Electromagnetic 8 | . . . . . 2 . . . . . . . . . 6 . . . . . . . . . . Robot Hit Streak 9 | 4 8 5 . . 7 . . . 2 . . 2 3 3 5 . . 9 . . . . . . . Robot Miss Streak 3 | 3 3 3 . . 3 . . . . . . 1 . 1 2 . . 1 . . . . . . . Penetration Max . | . . . . . . . . . . . . . . . . . . . . . . . . . . Secondary Targets . | . . . . . . . . . . . . . . . . . . . . . . . . . . Shots Hit Robots 148 | 24 38 14 . . 29 2 . . 2 . . 2 1 3 7 . . 9 . . . 4 7 2 4 Core Hits 128 | 9 21 13 . . 39 1 . . 10 . . 4 . 22 4 . . 4 . . . . 1 . . Critical Kills 1 | . . 1 . . . . . . . . . . . . . . . . . . . . . . . Critical Parts Destroyed 4 | . . . . . . . . . . . . . . . . . . . . . . 2 1 1 . Critical Strikes 15 | 2 3 1 . . 1 . . . . . . . . . 1 . . 3 . . . 2 1 1 . Burn 5 | 2 3 . . . . . . . . . . . . . . . . . . . . . . . . Meltdown 1 | . . 1 . . . . . . . . . . . . . . . . . . . . . . . Blast 3 | . . . . . . . . . . . . . . . . . . 3 . . . . . . . Smash 4 | . . . . . . . . . . . . . . . . . . . . . . 2 1 1 . Impale 1 | . . . . . 1 . . . . . . . . . . . . . . . . . . . . Sunder 1 | . . . . . . . . . . . . . . . 1 . . . . . . . . . . Melee Attacks 82 | . . . . . 16 2 . . 2 1 . . . . 6 . . . . . . 8 21 13 13 Impact 47 | . . . . . . . . . . . . . . . . . . . . . . 8 21 13 5 Slashing 8 | . . . . . . . . . . . . . . . . . . . . . . . . . 8 Piercing 21 | . . . . . 16 2 . . 2 1 . . . . . . . . . . . . . . . Entropic 6 | . . . . . . . . . . . . . . . 6 . . . . . . . . . . Sneak Attacks 15 | . . . . . 2 2 . . . . . . . . . . . . . . . 4 5 1 1 Combat Hostiles . | . . . . . . . . . . . . . . . . . . . . . . . . . . Follow-up Attacks . | . . . . . . . . . . . . . . . . . . . . . . . . . . Damage Inflicted 8870 | 236 872 567 . . 2895 126 . . 546 . . 228 67 1153 380 . . 253 . . . 410 641 179 317 Guns 844 | 236 343 . . . 138 . . . . . . . . . 127 . . . . . . . . . . Cannons 550 | . 71 209 . . 17 . . . . . . . . . . . . 253 . . . . . . . Explosions 5142 | . 445 358 . . 2363 . . . 546 . . 228 67 1135 . . . . . . . . . . . Melee 2300 | . . . . . 377 126 . . . . . . . . 253 . . . . . . 410 641 176 317 Ramming 16 | . 13 . . . . . . . . . . . . . . . . . . . . . . 3 . Kinetic 1029 | 99 156 . . . 521 . . . . . . . . . . . . 253 . . . . . . . Thermal 1289 | 137 290 209 . . 635 . . . . . . . . 18 . . . . . . . . . . . Explosive 3920 | . 326 358 . . 1260 . . . 546 . . 228 67 1135 . . . . . . . . . . . Electromagnetic 316 | . 87 . . . 102 . . . . . . . . . 127 . . . . . . . . . . Impact 1291 | . . . . . . . . . . . . . . . . . . . . . . 410 641 176 64 Slashing 253 | . . . . . . . . . . . . . . . . . . . . . . . . . 253 Piercing 503 | . . . . . 377 126 . . . . . . . . . . . . . . . . . . . Entropic 253 | . . . . . . . . . . . . . . . 253 . . . . . . . . . . Highest Corruption 16 | . . . . . 4 4 . . . 7 7 4 4 . 6 16 16 16 16 16 16 1 . 1 14 Average Corruption 8 | . . . . . 4 2 . . . 7 4 4 4 . 2 11 16 16 16 16 16 1 . 1 4 Corruption Purged 7 | . . . . . . 4 . . . . 3 . . . . . . . . . . . . . . Corruption Blocked . | . . . . . . . . . . . . . . . . . . . . . . . . . . Effects 82 | . . . . . 8 1 . . . . 9 3 . . 1 6 5 5 21 6 9 . . 1 7 Message Errors 21 | . . . . . 3 1 . . . . 4 1 . . . . 1 1 7 1 2 . . . . Matter Fused 23 | . . . . . 1 . . . . . 3 1 . . 1 2 1 . 3 2 5 . . 1 3 Heat Flow Errors 10 | . . . . . . . . . . . . 1 . . . . 1 1 3 1 2 . . . 1 Energy Discharges 13 | . . . . . 2 . . . . . 1 . . . . . 2 1 5 . . . . . 2 Parts Fused 1 | . . . . . . . . . . . . . . . . . . . . 1 . . . . . Data Loss (minor) 7 | . . . . . 1 . . . . . 1 . . . . . . 2 2 1 . . . . . Data Loss (major) 1 | . . . . . . . . . . . . . . . . . . . 1 . . . . . . Alerts 2 | . . . . . 1 . . . . . . . . . . . . . . . . . . . 1 Misdirections 4 | . . . . . . . . . . . . . . . . 4 . . . . . . . . . Overload Shots . | . . . . . . . . . . . . . . . . . . . . . . . . . . Overflow Damage 1377 | . 37 27 . . 181 32 . . 13 . . 13 . 14 11 . . 11 . . . 345 392 156 145 Projectiles 11 | . . . . . . . . . . . . . . . . . . 11 . . . . . . . Explosions 206 | . 37 27 . . 102 . . . 13 . . 13 . 14 . . . . . . . . . . . Melee 1160 | . . . . . 79 32 . . . . . . . . 11 . . . . . . 345 392 156 145 Knockbacks 1 | . . . . . . . . . . . . . . . . . . . . . . . 1 . . Impact 1 | . . . . . . . . . . . . . . . . . . . . . . . 1 . . Kinetic . | . . . . . . . . . . . . . . . . . . . . . . . . . . Secondary . | . . . . . . . . . . . . . . . . . . . . . . . . . . Self-Inflicted Damage 432 | . 80 60 . . 266 . . . . . . . . 25 . . . . . . . . . 1 . Shots 16 | . 3 6 . . 6 . . . . . . . . 1 . . . . . . . . . . . Rammed 5 | . 2 . . . . . . . . . . . . . . . . . . . . 2 . 1 . Targets Rammed 7 | . 4 . . . . . . . . . . . . . . . . . . . . 2 . 1 . Kicked . | . . . . . . . . . . . . . . . . . . . . . . . . . . Crushed 2 | . 2 . . . . . . . . . . . . . . . . . . . . . . . . Highest Temperature 240 | 102 230 . . . 18 . . . . . . 240 . . . . 196 87 237 182 139 . . . 142 Average Temperature 57 | 32 57 . . . 8 . . . . . . 140 . . . . 97 54 108 107 75 . . . 106 Received Heat Transfer 1345 | . 66 45 . . 841 . 12 . 9 . . 51 . 41 108 . . . . . . 100 9 45 18 Siege Activations . | . . . . . . . . . . . . . . . . . . . . . . . . . . Martial Activations . | . . . . . . . . . . . . . . . . . . . . . . . . . . Shielding Activations . | . . . . . . . . . . . . . . . . . . . . . . . . . . Robots Disrupted . | . . . . . . . . . . . . . . . . . . . . . . . . . . Combat Hostiles . | . . . . . . . . . . . . . . . . . . . . . . . . . . Robots Corrupted 5 | . . . . . . . . . . . . . . . . . . . . . . . 4 . 1 Combat Hostiles . | . . . . . . . . . . . . . . . . . . . . . . . . . . Parts Fried 18 | . . . . . . . . . . . . . . . . . . . . . . 4 9 3 2 Impact Corruptions 25 | . . . . . . . . . . . . . . . . . . . . . . 9 13 2 1 Robots Melted 1 | . . 1 . . . . . . . . . . . . . . . . . . . . . . . Combat Hostiles 1 | . . 1 . . . . . . . . . . . . . . . . . . . . . . . Parts Melted 6 | 3 1 1 . . 1 . . . . . . . . . . . . . . . . . . . . Heat Transferred 2598 | 555 975 444 . . 587 . . . . . . . . 37 . . . . . . . . . . . Parts Sabotaged . | . . . . . . . . . . . . . . . . . . . . . . . . . . Parts Stolen . | . . . . . . . . . . . . . . . . . . . . . . . . . . Parts Stripped . | . . . . . . . . . . . . . . . . . . . . . . . . . . Power Chain Reactions 2 | . 1 . . . . . . . . . . . . . . . . . . . . 1 . . . Alert | -11 -10 -10 -9 -9 -6 -6 -6 -6 -5 -5 -5 -5 -5 -4 -4 -4 -4 -4 -4 -4 -3 -3 -2 -2 -1 ------- Run | Yrd Mat Sub Rec Scr Fac Low Low Dat Pro Fac Upp Upp War Pro Fac Was Fac Upp Upp Zhi Pro Res Res Qua Acc Maximum Alert Level 2 | . . . . . 2 . . . . . . . . . . . . . . . . 1 1 . 1 Low Security (%) 89 | 100 100 . 100 . 61 . . . . 100 . . . . 100 100 100 . . . . 89 75 100 75 Level 1 6 | . . . . . 11 . . . . . . . . . . . . . . . . 10 24 . 24 Level 2 4 | . . . . . 26 . . . . . . . . . . . . . . . . . . . . Level 3 . | . . . . . . . . . . . . . . . . . . . . . . . . . . Level 4 . | . . . . . . . . . . . . . . . . . . . . . . . . . . Level 5 . | . . . . . . . . . . . . . . . . . . . . . . . . . . High Security . | . . . . . . . . . . . . . . . . . . . . . . . . . . Max Security . | . . . . . . . . . . . . . . . . . . . . . . . . . . Peak Influence 553 | 10 191 . 44 . 553 . . . . 88 . . . . 186 51 20 . . . . 299 275 157 315 Initial 168 | . . . 34 . . . . . . 88 . . . . 165 51 14 . . . . . 168 143 69 Average 98 | 1 64 . 14 . 219 . . . . 41 . . . . 83 34 8 . . . . 41 201 142 106 Influence Increases 4911 | 30 446 150 20 . 1048 . . . 215 24 . 205 75 503 603 . 30 . 60 . . 472 207 124 699 Destroy 0b10 Robot/C 1420 | . 220 140 . . 360 . . . 80 . . 40 . 340 160 . . . . . . . . . 80 Destroy 0b10 Robot/NC 205 | 30 35 . . . 35 . . . . . . . . . 25 . . . . . . 20 35 10 15 Destroy Leader 196 | . 44 10 . . 54 . . . . . . . . 20 40 . . . . . . . 4 2 22 Allied During Kill 148 | . . . . . . . . . . . . . . 53 5 . . . . . . . . . 90 Successful Hack 326 | . 34 . 5 . 28 . . . . 22 . . . . 35 . . . . . . 90 51 40 21 Select Force Hacks 100 | . . . . . . . . . . . . . . . 50 . . . . . . 50 . . . Disable Machine 480 | . 60 . . . 315 . . . . . . . . . 30 . . . . . . 15 . 30 30 Destroy Structure 326 | . 38 . 15 . 151 . . . . 2 . . . . 18 . . . . . . 12 42 27 21 Partial Spotted 165 | . . . . . . . . . . . . . . . 45 . 30 . . . . 15 . 15 60 Lose Combat Pursuer 1545 | . 15 . . . 105 . . . 135 . . 165 75 90 195 . . . 60 . . 270 75 . 360 Influence Decreases 4796 | 30 400 124 92 . 732 316 . . 73 166 . 100 180 240 720 125 31 20 60 . . 173 251 262 701 Entered New Map 837 | . . 23 38 . . 118 . . . 54 . . 105 . 98 95 7 8 . . . . 131 112 48 Time Decay 2469 | 30 390 91 54 . 332 198 . . 73 108 . 70 75 120 238 10 24 12 60 . . 133 120 130 201 Lost Part 676 | . 10 10 . . 250 . . . . 4 . 30 . 50 60 20 . . . . . 40 . 20 182 Lost Ally 460 | . . . . . . . . . . . . . . 70 120 . . . . . . . . . 270 Purge Threat 354 | . . . . . 150 . . . . . . . . . 204 . . . . . . . . . . Squads Dispatched 30 | . 1 . . . 4 . . . 1 . . . . 1 6 . . . . . . 6 . 4 7 Investigation 7 | . . . . . . . . . . . . . . . 3 . . . . . . 1 . 2 1 Extermination 9 | . . . . . 1 . . . . . . . . . 2 . . . . . . 2 . 1 3 Reinforcement 12 | . 1 . . . 3 . . . . . . . . . 1 . . . . . . 3 . 1 3 Assault 2 | . . . . . . . . . 1 . . . . 1 . . . . . . . . . . . Garrison . | . . . . . . . . . . . . . . . . . . . . . . . . . . Intercept . | . . . . . . . . . . . . . . . . . . . . . . . . . . Searches Triggered . | . . . . . . . . . . . . . . . . . . . . . . . . . . Construction Impeded . | . . . . . . . . . . . . . . . . . . . . . . . . . . Haulers Reinforced 1 | . . . . . 1 . . . . . . . . . . . . . . . . . . . . Active Scanning Responses . | . . . . . . . . . . . . . . . . . . . . . . . . . . Cargo Convoy Interrupts . | . . . . . . . . . . . . . . . . . . . . . . . . . . Stealth | -11 -10 -10 -9 -9 -6 -6 -6 -6 -5 -5 -5 -5 -5 -4 -4 -4 -4 -4 -4 -4 -3 -3 -2 -2 -1 --------- Run | Yrd Mat Sub Rec Scr Fac Low Low Dat Pro Fac Upp Upp War Pro Fac Was Fac Upp Upp Zhi Pro Res Res Qua Acc Distress Signals 15 | . 1 . . . 1 . . . . . . . 3 . 3 . . . . . . 1 1 1 4 Communications Jammed . | . . . . . . . . . . . . . . . . . . . . . . . . . . Distress Signals . | . . . . . . . . . . . . . . . . . . . . . . . . . . Times Spotted 269 | . 19 20 . . 27 . 1 . 12 6 . 11 13 21 25 5 . . 6 . . 22 10 18 53 Peak Tracking Total 21 | . 4 6 . . 6 . 1 . 9 6 . 6 10 7 10 5 . . 9 . . 10 9 15 21 Tactical Retreats 43 | . 1 . . . 6 . . . 4 . . 4 2 4 5 . . . 1 . . 6 2 . 8 Traps | -11 -10 -10 -9 -9 -6 -6 -6 -6 -5 -5 -5 -5 -5 -4 -4 -4 -4 -4 -4 -4 -3 -3 -2 -2 -1 ------- Run | Yrd Mat Sub Rec Scr Fac Low Low Dat Pro Fac Upp Upp War Pro Fac Was Fac Upp Upp Zhi Pro Res Res Qua Acc Traps Triggered 9 | . 2 . . . 1 . . . . 1 . . . . 2 . . . . . . . . 1 2 Indirectly . | . . . . . . . . . . . . . . . . . . . . . . . . . . Trap Hack Attempts . | . . . . . . . . . . . . . . . . . . . . . . . . . . Triggered . | . . . . . . . . . . . . . . . . . . . . . . . . . . Disarmed . | . . . . . . . . . . . . . . . . . . . . . . . . . . Reprogrammed . | . . . . . . . . . . . . . . . . . . . . . . . . . . Reused . | . . . . . . . . . . . . . . . . . . . . . . . . . . Traps Extracted . | . . . . . . . . . . . . . . . . . . . . . . . . . . Installed . | . . . . . . . . . . . . . . . . . . . . . . . . . . Triggered . | . . . . . . . . . . . . . . . . . . . . . . . . . . Machines | -11 -10 -10 -9 -9 -6 -6 -6 -6 -5 -5 -5 -5 -5 -4 -4 -4 -4 -4 -4 -4 -3 -3 -2 -2 -1 ---------- Run | Yrd Mat Sub Rec Scr Fac Low Low Dat Pro Fac Upp Upp War Pro Fac Was Fac Upp Upp Zhi Pro Res Res Qua Acc Machines Disabled 35 | . 4 2 . . 21 . . . . . . . . . 2 . . 1 . . . 1 . 2 2 Max in Single Turn 18 | . 1 1 . . 18 . . . . . . . . . 1 . . 1 . . . 1 . 1 1 Garrison Access 2 | . . . . . . . . . . . . . . . . . . . . . . . 1 1 . Machines Repaired . | . . . . . . . . . . . . . . . . . . . . . . . . . . Machines Dismantled . | . . . . . . . . . . . . . . . . . . . . . . . . . . Machines Sabotaged . | . . . . . . . . . . . . . . . . . . . . . . . . . . Overloaded Fab Kills 2 | . . . . . . . . . . . . . . . 1 . . . . . . 1 . . . Hacking | -11 -10 -10 -9 -9 -6 -6 -6 -6 -5 -5 -5 -5 -5 -4 -4 -4 -4 -4 -4 -4 -3 -3 -2 -2 -1 --------- Run | Yrd Mat Sub Rec Scr Fac Low Low Dat Pro Fac Upp Upp War Pro Fac Was Fac Upp Upp Zhi Pro Res Res Qua Acc Machines Accessed 84 | . 7 . 2 6 5 2 . 4 . 3 3 . 6 . 6 . 3 1 2 5 . 8 4 12 5 Terminals 45 | . 6 . 2 . 5 . . . . 1 1 . . . 4 . 3 . . . . 6 2 11 4 Fabricators 3 | . . . . . . . . . . 1 . . . . 1 . . . . . . 1 . . . Repair Stations . | . . . . . . . . . . . . . . . . . . . . . . . . . . Recycling Units 2 | . 1 . . . . . . . . . . . . . 1 . . . . . . . . . . Scanalyzers 3 | . . . . . . . . . . 1 . . . . . . . . . . . 1 1 . . Garrison Access 3 | . . . . . . . . . . . . . . . . . . . . . . . 1 1 1 Total Hacks 258 | . 19 . 7 47 11 4 . 26 . 8 6 . 14 . 19 . 4 1 2 18 . 20 12 29 11 Successful 179 | . 9 . 3 47 3 4 . 26 . 5 6 . 14 . 9 . 1 1 2 18 . 11 5 11 4 Failed 79 | . 10 . 4 . 8 . . . . 3 . . . . 10 . 3 . . . . 9 7 18 7 Catastrophic 10 | . 1 . . . 1 . . . . 1 . . . . . . 2 . . . . . 1 4 . Database Lockouts . | . . . . . . . . . . . . . . . . . . . . . . . . . . Manual 56 | . 6 . 3 1 1 . . . . 5 . . 1 . 9 . 4 . . . . 7 4 10 5 Terminals 119 | . 15 . 7 . 11 . . . . 2 1 . . . 17 . 4 . . . . 16 8 28 10 Fabricators 7 | . . . . . . . . . . 4 . . . . 1 . . . . . . 2 . . . Repair Stations . | . . . . . . . . . . . . . . . . . . . . . . . . . . Recycling Units 5 | . 4 . . . . . . . . . . . . . 1 . . . . . . . . . . Scanalyzers 6 | . . . . . . . . . . 2 . . . . . . . . . . . 2 2 . . Garrison Access 4 | . . . . . . . . . . . . . . . . . . . . . . . 2 1 1 Terminal Hacks 151 | . 5 . 2 47 3 4 . 26 . . 6 . 14 . 5 . . 1 2 18 . 6 1 8 3 Record 85 | . . . . 41 . 3 . 11 . . 5 . 13 . . . . 1 . 6 . 2 . 3 . Part Schematic 12 | . . . . . . . . 8 . . . . . . . . . . . 4 . . . . . Robot Schematic 4 | . . . . . . . . 4 . . . . . . . . . . . . . . . . . Robot Analysis 13 | . . . . 6 . . . . . . . . . . 1 . . . . 4 . 1 . 1 . Prototype ID Bank 12 | . 2 . 1 . 1 . . 3 . . . . . . . . . . . 4 . 1 . . . Open Door 6 | . . . . . . 1 . . . . 1 . 1 . . . . . 2 . . . . 1 . Open DSF 1 | . . . . . . . . . . . . . . . 1 . . . . . . . . . . Level Access Points 2 | . 1 . . . . . . . . . . . . . . . . . . . . . . . 1 Branch Access Points 2 | . . . . . . . . . . . . . . . . . . . . . . . 1 1 . Unreport Threat 3 | . . . . . 1 . . . . . . . . . 2 . . . . . . . . . . Locate Traps 2 | . . . . . 1 . . . . . . . . . . . . . . . . 1 . . . Maintenance Status 1 | . . . . . . . . . . . . . . . . . . . . . . . . . 1 Patrol Status 2 | . . . . . . . . . . . . . . . . . . . . . . . . 1 1 Registered Components 2 | . . . . . . . . . . . . . . . 1 . . . . . . 1 . . . Zone Layout 4 | . 2 . 1 . . . . . . . . . . . . . . . . . . . . 1 . Fabricator Hacks 1 | . . . . . . . . . . 1 . . . . . . . . . . . . . . . Network Status 1 | . . . . . . . . . . 1 . . . . . . . . . . . . . . . Repair Station Hacks . | . . . . . . . . . . . . . . . . . . . . . . . . . . Recycling Unit Hacks 1 | . 1 . . . . . . . . . . . . . . . . . . . . . . . . Report Inventory 1 | . 1 . . . . . . . . . . . . . . . . . . . . . . . . Scanalyzer 5 | . . . . . . . . . . 2 . . . . . . . . . . . 2 1 . . Retrieve Study 5 | . . . . . . . . . . 2 . . . . . . . . . . . 2 1 . . Garrison Access Hacks 2 | . . . . . . . . . . . . . . . . . . . . . . . 1 1 . Seal Access 2 | . . . . . . . . . . . . . . . . . . . . . . . 1 1 . Unauthorized Hacks 19 | . 3 . 1 . . . . . . 2 . . . . 4 . 1 . . . . 3 2 2 1 Terminals 13 | . 1 . 1 . . . . . . 1 . . . . 2 . 1 . . . . 2 2 2 1 Assimilate 5 | . . . . . . . . . . . . . . . 1 . . . . . . 1 1 1 1 Botnet 8 | . 1 . 1 . . . . . . 1 . . . . 1 . 1 . . . . 1 1 1 . Fabricators 3 | . . . . . . . . . . 1 . . . . 1 . . . . . . 1 . . . Fabnet 1 | . . . . . . . . . . 1 . . . . . . . . . . . . . . . Overload 2 | . . . . . . . . . . . . . . . 1 . . . . . . 1 . . . Repair Stations . | . . . . . . . . . . . . . . . . . . . . . . . . . . Recycling Units 3 | . 2 . . . . . . . . . . . . . 1 . . . . . . . . . . Recyclers 1 | . 1 . . . . . . . . . . . . . . . . . . . . . . . . Mask 1 | . 1 . . . . . . . . . . . . . . . . . . . . . . . . Scrapoids 1 | . . . . . . . . . . . . . . . 1 . . . . . . . . . . Scanalyzers . | . . . . . . . . . . . . . . . . . . . . . . . . . . Garrison Access . | . . . . . . . . . . . . . . . . . . . . . . . . . . Data Cores Recovered . | . . . . . . . . . . . . . . . . . . . . . . . . . . Used . | . . . . . . . . . . . . . . . . . . . . . . . . . . Hacking Detections 45 | . 7 . 2 . 5 . . . . 2 . . . . 3 . 3 . . . . 6 4 9 4 Full Trace Events 4 | . . . . . . . . . . . . . . . 1 . . . . . . . . 2 1 Feedback Events 1 | . . . . . . . . . . . . . . . 1 . . . . . . . . . . Corruption 1 | . . . . . . . . . . . . . . . 1 . . . . . . . . . . Feedback Blocked . | . . . . . . . . . . . . . . . . . . . . . . . . . . Robot Schematics Acquired 4 | . . . . . . . . 4 . . . . . . . . . . . . . . . . . Robots Built . | . . . . . . . . . . . . . . . . . . . . . . . . . . Authchips . | . . . . . . . . . . . . . . . . . . . . . . . . . . Time . | . . . . . . . . . . . . . . . . . . . . . . . . . . Total Robot Build Rating . | . . . . . . . . . . . . . . . . . . . . . . . . . . Part Schematics Acquired 12 | . . . . . . . . 8 . . . . . . . . . . . 4 . . . . . Parts Built . | . . . . . . . . . . . . . . . . . . . . . . . . . . Authchips . | . . . . . . . . . . . . . . . . . . . . . . . . . . Time . | . . . . . . . . . . . . . . . . . . . . . . . . . . Total Part Build Rating . | . . . . . . . . . . . . . . . . . . . . . . . . . . Part Studies Acquired 5 | . . . . . . . . . . 2 . . . . . . . . . . . 2 1 . . Parts Repaired . | . . . . . . . . . . . . . . . . . . . . . . . . . . Time . | . . . . . . . . . . . . . . . . . . . . . . . . . . Parts Recycled . | . . . . . . . . . . . . . . . . . . . . . . . . . . Recycled Matter . | . . . . . . . . . . . . . . . . . . . . . . . . . . Retrieved Matter . | . . . . . . . . . . . . . . . . . . . . . . . . . . Retrieved Components . | . . . . . . . . . . . . . . . . . . . . . . . . . . Parts Scanalyzed . | . . . . . . . . . . . . . . . . . . . . . . . . . . Part Schematics Acquired . | . . . . . . . . . . . . . . . . . . . . . . . . . . Parts Damaged . | . . . . . . . . . . . . . . . . . . . . . . . . . . Bothacking | -11 -10 -10 -9 -9 -6 -6 -6 -6 -5 -5 -5 -5 -5 -4 -4 -4 -4 -4 -4 -4 -3 -3 -2 -2 -1 ------------ Run | Yrd Mat Sub Rec Scr Fac Low Low Dat Pro Fac Upp Upp War Pro Fac Was Fac Upp Upp Zhi Pro Res Res Qua Acc Used RIF Installer . | . . . . . . . . . . . . . . . . . . . . . . . . . . Robots Hacked 3 | . . . . . . . . . . . . . . . 3 . . . . . . . . . . Non-combat . | . . . . . . . . . . . . . . . . . . . . . . . . . . Combat 3 | . . . . . . . . . . . . . . . 3 . . . . . . . . . . Robot Hacks Applied . | . . . . . . . . . . . . . . . . . . . . . . . . . . Relay Couplers Released . | . . . . . . . . . . . . . . . . . . . . . . . . . . Fabnet Peak Effective % 3 | . . . . . . . . . . . . . . 3 3 3 3 3 3 3 1 1 . . . Autooverrided 3 | . . . . . . . . . . . . . . . 3 . . . . . . . . . . Robots Rewired 7 | . . . . . . . . . . . . . 5 2 . . . . . . . . . . . Allies Hacked 1 | . . . . . . . . . . . . . . . 1 . . . . . . . . . . Hacks Repelled . | . . . . . . . . . . . . . . . . . . . . . . . . . . Allies | -11 -10 -10 -9 -9 -6 -6 -6 -6 -5 -5 -5 -5 -5 -4 -4 -4 -4 -4 -4 -4 -3 -3 -2 -2 -1 -------- Run | Yrd Mat Sub Rec Scr Fac Low Low Dat Pro Fac Upp Upp War Pro Fac Was Fac Upp Upp Zhi Pro Res Res Qua Acc Total Allies 33 | . . . . . . . . . . . . . 5 2 9 . . . . . . 1 1 1 14 Largest Group 12 | . . . . . . . . . . . . . 5 4 6 . . . . . . 1 2 1 12 Highest-Rated Group 255 | . . . . . . . . . . . . . 255 209 245 . . . . . . 26 71 45 170 Highest-Rated Ally 68 | . . . . . . . . . . . . . 68 68 47 . . . . . . 26 45 45 45 Initial UFD Resources 31 | . . . . . 22 22 22 22 24 24 24 24 24 27 27 24 24 24 24 24 26 26 29 29 31 Total Orders 5 | . . . . . . . . . . . . . . . 1 . . . . . . 2 1 1 . STAY 4 | . . . . . . . . . . . . . . . 1 . . . . . . 1 1 1 . FOLLOW 1 | . . . . . . . . . . . . . . . . . . . . . . 1 . . . Ally Attacks 147 | . . . . . . . . . . . . . 7 20 59 . . . . . . . . . 61 Total Damage 3729 | . . . . . . . . . . . . . 304 964 1445 . . . . . . . . . 1016 Kills 19 | . . . . . . . . . . . . . . 4 10 . . . . . . . . . 5 Allies Corrupted 1 | . . . . . . . . . . . . . . . 1 . . . . . . . . . . Allies Melted 2 | . . . . . . . . . . . . . 1 . 1 . . . . . . . . . . Intel | -11 -10 -10 -9 -9 -6 -6 -6 -6 -5 -5 -5 -5 -5 -4 -4 -4 -4 -4 -4 -4 -3 -3 -2 -2 -1 ------- Run | Yrd Mat Sub Rec Scr Fac Low Low Dat Pro Fac Upp Upp War Pro Fac Was Fac Upp Upp Zhi Pro Res Res Qua Acc Active Infowar (turns) 7462 | 24 340 . . . 505 382 515 88 411 237 455 198 964 258 628 20 91 168 509 76 219 389 245 274 466 Optics 771 | . . . . . . . . . . . . . . . . . . . . . . . 31 274 466 Sensors 4767 | . . . . . 9 382 515 88 411 237 455 51 . . 546 20 91 168 509 54 219 389 245 272 106 IFF 1831 | . . . . . . . . . . . 337 198 964 258 74 . . . . . . . . . . Terrain 1392 | 24 340 . . . 496 . . . . . . . . . . . . . . . . 13 245 274 . Structural 2045 | . . . . . . . . . 311 237 455 120 431 118 48 10 34 136 11 29 26 53 . . 26 Seismic 151 | . . . . . . . . . . . . . . . 151 . . . . . . . . . . Robot Analysis Total 13 | . . . . 6 . . . . . . . . . . 1 . . . . 4 . 1 . 1 . Derelict Logs Recovered 14 | . . 2 . 4 . 2 1 . 1 . 1 1 . . . . . . 2 . . . . . . Drone Launches . | . . . . . . . . . . . . . . . . . . . . . . . . . . Drone Recoveries . | . . . . . . . . . . . . . . . . . . . . . . . . . . Exploration | -11 -10 -10 -9 -9 -6 -6 -6 -6 -5 -5 -5 -5 -5 -4 -4 -4 -4 -4 -4 -4 -3 -3 -2 -2 -1 ------------- Run | Yrd Mat Sub Rec Scr Fac Low Low Dat Pro Fac Upp Upp War Pro Fac Was Fac Upp Upp Zhi Pro Res Res Qua Acc Turns Passed 33722 | 240 1119 605 196 24022 764 404 515 88 411 237 455 198 964 258 718 36 91 168 509 123 220 389 245 274 473 Spaces Moved 15236 | 106 527 328 116 3252 647 322 365 81 600 124 395 313 1304 431 1185 89 251 323 559 146 545 767 492 815 1153 Core 1365 | 8 . . . 805 9 . . . . . . 175 142 70 14 . . . . . . 7 10 . 125 Treads 263 | 98 157 . . . 8 . . . . . . . . . . . . . . . . . . . . Legs . | . . . . . . . . . . . . . . . . . . . . . . . . . . Wheels 3592 | . 370 328 116 2447 331 . . . . . . . . . . . . . . . . . . . . Hover 668 | . . . . . . . . . . . . . 572 96 . . . . . . . . . . . Flight 9348 | . . . . . 299 322 365 81 600 124 395 138 590 265 1171 89 251 323 559 146 545 760 482 815 1028 Fastest Speed 20 | 50 160 165 165 90 27 30 110 110 30 114 34 34 32 32 24 29 29 34 31 29 29 23 22 22 20 Average Speed 203 | 151 178 165 165 728 91 108 110 110 56 182 92 53 43 52 44 33 32 34 31 36 29 37 27 22 34 Slowest Speed 2450 | 160 400 185 165 2450 320 110 110 110 194 194 114 114 100 250 200 40 35 35 34 245 29 450 250 22 350 Overloaded Moves 5 | . . . . . . . . . . . . . . . . . . . . . . 3 . . 2 Propulsion Burnouts . | . . . . . . . . . . . . . . . . . . . . . . . . . . Robots Hopped 83 | . . . . . . . . . 1 . . . . . 32 . 1 1 . . . 8 3 14 23 Potential Cave-ins . | . . . . . . . . . . . . . . . . . . . . . . . . . . Cave-ins Triggered . | . . . . . . . . . . . . . . . . . . . . . . . . . . Teleports 2 | . . . . . . . . . . . . . . . . . . . . . . . . . 2 Exploration Rate (%) 49 | 5 91 26 35 94 18 50 50 69 70 5 54 39 93 64 21 79 8 59 73 61 67 16 18 84 39 Regions Visited 25 Branch Regions 16 Pre-discovered Areas 16 | . . 2 . 6 . . . 1 . . 1 . 1 . . . . . 2 3 . . . . . Known Exits Taken 18 | . . 1 . . 1 1 1 1 1 1 1 1 . 1 . . 1 1 1 1 1 1 1 1 . Unknown Exits Taken 5 | 1 1 . 1 1 . . . . . . . . 1 . . . . . . . . . . . . Scrap Searched 22 | . . 4 . 3 . 2 4 . 2 . 3 . . 1 . . . 2 1 . . . . . . Spaces Dug 120 | . 10 12 23 . 3 . . . 29 1 . . . . . . . 2 . . 2 7 14 9 8 Terrain Destroyed 474 | . 37 50 23 . 174 . . . 56 1 . 35 2 50 . . . 6 . . 2 7 14 9 8 Melee 39 | . . . . . 3 . . . 1 1 . . . . . . . . . . . 3 14 9 8 Projectile 12 | . . . . . . . . . . . . . . . . . . 6 . . 2 4 . . . AOE 423 | . 37 50 23 . 171 . . . 55 . . 35 2 50 . . . . . . . . . . . Terrain Rammed . | . . . . . . . . . . . . . . . . . . . . . . . . . . Walls Destroyed . | . . . . . . . . . . . . . . . . . . . . . . . . . . Machines Disabled . | . . . . . . . . . . . . . . . . . . . . . . . . . . Actions | -11 -10 -10 -9 -9 -6 -6 -6 -6 -5 -5 -5 -5 -5 -4 -4 -4 -4 -4 -4 -4 -3 -3 -2 -2 -1 --------- Run | Yrd Mat Sub Rec Scr Fac Low Low Dat Pro Fac Upp Upp War Pro Fac Was Fac Upp Upp Zhi Pro Res Res Qua Acc Total 17507 | 142 623 370 118 3592 754 374 478 80 663 134 484 340 1700 453 1332 95 257 365 889 216 604 832 555 870 1187 Wait 1723 | . 6 5 . 301 15 43 114 . 45 1 89 21 349 6 143 6 3 21 330 58 56 24 30 45 12 Move 15055 | 105 526 327 115 3251 646 321 364 80 597 123 394 312 1303 430 1128 88 248 320 558 145 544 750 485 788 1107 Hop 75 | . . . . . . . . . 1 . . . . . 25 . 1 1 . . . 8 3 13 23 Pick Up 104 | 8 25 8 . 30 9 1 . . . 2 . . 1 . 2 . 1 1 1 1 . 3 5 3 3 Fast Attach 82 | 7 4 . . 1 13 2 . . . 2 1 . 11 3 12 . 2 1 . 3 . 7 4 3 6 Attach 65 | . 1 1 . 1 22 . . . 6 . . 2 1 2 4 . 1 4 . . 1 9 1 1 8 Detach 36 | . . . . 2 . 1 . . 5 1 . 2 1 2 2 1 . 3 . . 1 8 1 . 6 Swap 22 | . 9 1 . . 2 1 . . . 1 . . 1 2 . . . . . 3 . 1 1 . . Drop 60 | . 4 6 . 6 1 3 . . 2 3 . . 7 1 4 . 1 1 . 6 . 5 4 4 2 Fire 156 | 22 44 22 3 . 22 . . . 5 . . 3 1 5 6 . . 13 . . 2 7 . . 1 Melee 82 | . . . . . 16 2 . . 2 1 . . . . 6 . . . . . . 8 21 13 13 Ram 2 | . . . . . . . . . . . . . . . . . . . . . . 2 . . . Kick . | . . . . . . . . . . . . . . . . . . . . . . . . . . Crush 4 | . 4 . . . . . . . . . . . . . . . . . . . . . . . . Escape Stasis 14 | . . . . . 8 . . . . . . . . . . . . . . . . . . . 6 Rewire 27 | . . . . . . . . . . . . . 25 2 . . . . . . . . . . . Trap . | . . . . . . . . . . . . . . . . . . . . . . . . . . Miscellaneous . | . . . . . . . . . . . . . . . . . . . . . . . . . . Route ------- -11/Scrapyard -10/Materials (discovered 6 exits: *Mat x3 / [*Min x2] / [*Sub]) -10/Subcaves -9/Recycling -9/Scraptown (discovered 2 exits: *Fac x2) -6/Factory (discovered 3 exits: Fac / *Low x2) -6/Lower Caves -6/Lower Caves (discovered 2 exits: Fac / *Dat) -6/Data Miner -5/Proximity Caves -5/Factory (discovered 3 exits: Fac / *Upp x2) -5/Upper Caves -5/Upper Caves (discovered 2 exits: Fac / *War) -5/Warlord -4/Proximity Caves -4/Factory (discovered 4 exits: Res x3 / Ext) -4/Waste -4/Factory -4/Upper Caves -4/Upper Caves -4/Zhirov -3/Proximity Caves -3/Research (discovered 4 exits: *Res x2 / Arm / Tes) -2/Research (discovered 3 exits: Acc / *Qua x2) -2/Quarantine -1/Access (discovered 1 exit: Sur) History --------- Turn | Location | Event 10 | -11/Scrapyard | Discovered new exit (range 15) 241 | -11/Scrapyard | Entered Materials 320 | -10/Materials | Build established: Mutant 715 | -10/Materials | Discovered new exit (range 10) 842 | -10/Materials | Discovered new exit (range 13) 883 | -10/Materials | Build established: Hauler-Mutant 907 | -10/Materials | Identified exit to Materials 1351 | -10/Materials | Discovered new exit (range 5) 1360 | -10/Materials | Entered Subcaves 1564 | -10/Subcaves | Ambushed by swarm of Subdwellers 1567 | -10/Subcaves | Core integrity fell below 50% 1593 | -10/Subcaves | Disturbed a concealed Subdweller 1627 | -10/Subcaves | Lost 3 allies 1867 | -10/Subcaves | Learned location of Zion (-7) 1868 | -10/Subcaves | Identified exit to Recycling 1908 | -10/Subcaves | Met a Zionite searching for "candidates" 1965 | -10/Subcaves | Entered Recycling 2123 | -9/Recycling | Scanned before Scraplab entrance 2146 | -9/Recycling | Entered Scraplab 2160 | -9/Recycling | Discovered new exit (range 2) 2161 | -9/Recycling | Entered Scraptown 2425 | -9/Scraptown | Visited UFD Registry 2425 | -9/Scraptown | Registered with UFD as "Cognuts" 2455 | -9/Scraptown | Visited Symbiants 2501 | -9/Scraptown | Visited Red Mages 2569 | -9/Scraptown | Learned location of Extension (-4) 2947 | -9/Scraptown | Discovered new exit (range 11) 3034 | -9/Scraptown | Scanned Subdweller tech in exchange for log data 3037 | -9/Scraptown | Learned location of 1 exit from Factory 3039 | -9/Scraptown | Learned location of Testing (-3) 3041 | -9/Scraptown | Learned Factory non-interactive machine intel 3042 | -9/Scraptown | Learned Research trap positions 3088 | -9/Scraptown | Visited TADAMA 3102 | -9/Scraptown | Visited Awakened 3154 | -9/Scraptown | Visited The Evicted 3196 | -9/Scraptown | Visited Spacefarers 3465 | -9/Scraptown | Visited LU-1G1's Boring Crew 3526 | -9/Scraptown | Visited Abandonware Association 3547 | -9/Scraptown | Learned abandonware demo "OVRCLOCK.EXE" 3550 | -9/Scraptown | Learned abandonware demo "HACKBUD.EXE" 3550 | -9/Scraptown | Learned abandonware demo "SHUTEYE.EXE" 3587 | -9/Scraptown | Visited Junk Repository 3694 | -9/Scraptown | Delivered Scrap Shield to a Scientist 3871 | -9/Scraptown | Visited Research Penetration Think Tank 3905 | -9/Scraptown | Visited Scrapoid Pod Storage 3923 | -9/Scraptown | Visited Cartography Club 4301 | -9/Scraptown | Learned location of Lower Caves (-7) 4301 | -9/Scraptown | Learned location of Proximity Caves (-3) 4301 | -9/Scraptown | Learned location of Warlord (-5) 4301 | -9/Scraptown | Learned 8 Materials zone layouts 4301 | -9/Scraptown | Learned 16 Materials zone layouts 4301 | -9/Scraptown | Learned 12 Factory zone layouts 4301 | -9/Scraptown | Learned 8 Research zone layouts 4301 | -9/Scraptown | Learned 12 Research zone layouts 4301 | -9/Scraptown | Learned 16 Research zone layouts 4301 | -9/Scraptown | Learned 4 Recycling zone layouts 4301 | -9/Scraptown | Learned 12 Proximity Caves zone layouts 4301 | -9/Scraptown | Learned 16 Proximity Caves zone layouts 4301 | -9/Scraptown | Learned 4 Armory zone layouts 4301 | -9/Scraptown | Learned location of 3 exits from Upper Caves 4301 | -9/Scraptown | Learned location of 2 exits from Lower Caves 4301 | -9/Scraptown | Learned location of 2 exits from Proximity Caves 4327 | -9/Scraptown | Found Deep Structural Scanner 4443 | -9/Scraptown | Visited Analyses Database 4483 | -9/Scraptown | Visited Scrapoid Research Area 4529 | -9/Scraptown | Visited A0-MCA Data Center 4566 | -9/Scraptown | Given a C rating by A0-MCA 4573 | -9/Scraptown | Found A0-MCA's Component Scanner 5637 | -9/Scraptown | Visited Cyclists 5649 | -9/Scraptown | Entered Cyclist Reading Room 12676 | -9/Scraptown | Visited Scrap Suit Storage 25630 | -9/Scraptown | Discovered new exit (range 3) 26183 | -9/Scraptown | Entered Factory 26183 | -6/Factory | Evolved 8 slots: Propulsion x2, Utility x6 26184 | -6/Factory | Identified exit to Lower Caves 26185 | -6/Factory | Identified exit to Factory 26187 | -6/Factory | Loaded intel: 204 non-interactive machine locations 26560 | -6/Factory | Spotted B-75 Beast 26571 | -6/Factory | Destroyed B-75 Beast 26785 | -6/Factory | Core integrity fell below 50% 26824 | -6/Factory | Lost 22 parts (1p9n6u6w) 26947 | -6/Factory | Entered Lower Caves 26948 | -6/Lower Caves | Identified exit to Lower Caves 26949 | -6/Lower Caves | UFD Scientist delivered a prototype 26950 | -6/Lower Caves | Found Prototype Protection 26950 | -6/Lower Caves | Identified Enh. Scrap Shield 27118 | -6/Lower Caves | Learned 4 Factory zone layouts 27179 | -6/Lower Caves | Entered an active Warlord outpost 27208 | -6/Lower Caves | Learned Research stockpile data 27208 | -6/Lower Caves | Learned Extension stockpile data 27208 | -6/Lower Caves | Learned Armory terminal intel 27235 | -6/Lower Caves | Build established: Mutant 27236 | -6/Lower Caves | Learned Factory garrison access intel 27351 | -6/Lower Caves | Entered another Lower Caves area 27352 | -6/Lower Caves | Identified exit to Data Miner 27845 | -6/Lower Caves | Spotted B-75 Beast 27866 | -6/Lower Caves | Entered Data Miner 27866 | -6/Data Miner | Discovered new exit (range 6) 27887 | -6/Data Miner | Met Data Miner 27906 | -6/Data Miner | Learned location of Section 7 (-2) 27906 | -6/Data Miner | Acquired the access code to Warlord's prototype stash 27926 | -6/Data Miner | Received God Mode back door access code from Data Miner 27953 | -6/Data Miner | Identified exit to Proximity Caves 27954 | -6/Data Miner | Entered Proximity Caves 28207 | -5/Proximity Caves | Spotted B-75 Beast 28239 | -5/Proximity Caves | Learned Factory emergency access door positions 28252 | -5/Proximity Caves | Attracted the attention of an 0b10 outpost 28365 | -5/Proximity Caves | Entered Factory 28365 | -5/Factory | Evolved 2 slots: Utility x2 28366 | -5/Factory | Identified exit to Upper Caves 28367 | -5/Factory | Identified exit to Factory 28369 | -5/Factory | Loaded intel: 4 garrison access locations 28592 | -5/Factory | Assembled infested ambush trap array 28602 | -5/Factory | Entered Upper Caves 28603 | -5/Upper Caves | Identified exit to Upper Caves 28907 | -5/Upper Caves | Entered an active Warlord outpost 28922 | -5/Upper Caves | Learned Extension trap positions 28922 | -5/Upper Caves | Learned Research stockpile data 28969 | -5/Upper Caves | Learned location of Armory (-3) 29057 | -5/Upper Caves | Entered another Upper Caves area 29058 | -5/Upper Caves | Identified exit to Warlord 29109 | -5/Upper Caves | Attracted the attention of an 0b10 checkpoint 29181 | -5/Upper Caves | Lost 3 parts (1p2n) 29210 | -5/Upper Caves | Learned Factory garrison access intel 29226 | -5/Upper Caves | Encountered a Warlord checkpoint 29255 | -5/Upper Caves | Entered Warlord 29286 | -5/Warlord | System corruption cleaned by Quarantine Array 29324 | -5/Warlord | Opened Warlord's prototype stash 29328 | -5/Warlord | Found Prototype Device 29328 | -5/Warlord | Identified Exp. Phase Shifter 29337 | -5/Warlord | Found Prototype Hackware 29337 | -5/Warlord | Identified System Mapper 29367 | -5/Warlord | Found Prototype Device 29367 | -5/Warlord | Identified Minesniffer Drone Bay 29381 | -5/Warlord | Visited the Vortex Lab 29383 | -5/Warlord | Found Prototype Piercing Weapon 29383 | -5/Warlord | Identified Vortex Lance 29384 | -5/Warlord | Warlord's base attacked by MAIN.C 29410 | -5/Warlord | Rebuked by Warlord 29418 | -5/Warlord | Found Prototype Special Weapon 29418 | -5/Warlord | Identified RU-N14's Throwing Claymores v3 29490 | -5/Warlord | Learned Quarantine emergency access door positions 29490 | -5/Warlord | Learned 4 Research zone layouts 29490 | -5/Warlord | Learned 4 Command zone layouts 29491 | -5/Warlord | Learned Factory terminal intel 29491 | -5/Warlord | Learned Factory scanalyzer intel 29491 | -5/Warlord | Learned Armory terminal intel 29491 | -5/Warlord | Learned Research scanalyzer intel 29626 | -5/Warlord | Build established: Hacker-Mutant 29734 | -5/Warlord | Warlord forces counterattacked 29859 | -5/Warlord | Spotted Striker 29859 | -5/Warlord | Spotted Executioner 29860 | -5/Warlord | Spotted Executioner 29938 | -5/Warlord | Lost 9 allies 30059 | -5/Warlord | Warlord base infiltrated, sounded retreat 30060 | -5/Warlord | Enhanced Grunt warped into view 30060 | -5/Warlord | Enhanced Grunt warped into view 30060 | -5/Warlord | Enhanced Grunt warped into view 30060 | -5/Warlord | Enhanced Demolisher warped into view 30060 | -5/Warlord | Enhanced Demolisher warped into view 30060 | -5/Warlord | Enhanced Demolisher warped into view 30183 | -5/Warlord | Discovered new exit (range 12) 30219 | -5/Warlord | Entered Proximity Caves 30219 | -4/Proximity Caves | Accompanied by 2 allies 30250 | -4/Proximity Caves | Destroyed 10 combat bots 30296 | -4/Proximity Caves | Attracted the attention of an 0b10 outpost 30347 | -4/Proximity Caves | Lost 3 parts (1p1n1w) 30430 | -4/Proximity Caves | Lost 3 allies 30477 | -4/Proximity Caves | Entered Factory 30477 | -4/Factory | Evolved 2 slots: Utility x2 30478 | -4/Factory | Identified exit to Research 30478 | -4/Factory | Identified exit to Extension 30479 | -4/Factory | Loaded intel: 27 terminal locations 30480 | -4/Factory | Loaded intel: 4 scanalyzer locations 30481 | -4/Factory | Loaded intel: 4 garrison access locations 30946 | -4/Factory | Lost 3 parts (2n1w) 31106 | -4/Factory | Scrapoids reinforcements arrived? 31115 | -4/Factory | Lost 3 parts (1n1u1w) 31167 | -4/Factory | Core integrity fell below 50% 31179 | -4/Factory | Local machine network offline 31195 | -4/Factory | Sucked down chute 31195 | -4/Factory | Entered Waste 31198 | -4/Waste | Spotted C-40 Crusher 31198 | -4/Waste | Spotted C-40 Crusher 31205 | -4/Waste | Spotted C-40 Crusher 31206 | -4/Waste | Spotted C-40 Crusher 31210 | -4/Waste | EMP discharged 31210 | -4/Waste | System corruption reached 10% 31223 | -4/Waste | Spotted C-40 Crusher 31227 | -4/Waste | Discovered new exit (range 15) 31227 | -4/Waste | Spotted C-40 Crusher 31231 | -4/Waste | Identified exit to Factory 31231 | -4/Waste | Entered Factory 31291 | -4/Factory | Discovered new exit (range 15) 31296 | -4/Factory | Identified exit to Upper Caves 31322 | -4/Factory | Entered Upper Caves 31452 | -4/Upper Caves | Found Alien Artifact 31487 | -4/Upper Caves | Discovered new exit (range 12) 31490 | -4/Upper Caves | Identified exit to Upper Caves 31490 | -4/Upper Caves | Entered another Upper Caves area 31555 | -4/Upper Caves | Learned location of Quarantine (-2) 31661 | -4/Upper Caves | Build established: Scout 31891 | -4/Upper Caves | Discovered new exit (range 7) 31999 | -4/Upper Caves | Identified exit to Zhirov 31999 | -4/Upper Caves | Entered Zhirov 31999 | -4/Zhirov | Discovered new exit (range 3) 32011 | -4/Zhirov | Learned location of Command (-1) 32021 | -4/Zhirov | Found Alien Artifact 32021 | -4/Zhirov | Identified Integrated Dissipator 32021 | -4/Zhirov | Installed Integrated Dissipator, increased core heat dissipation (+20) 32110 | -4/Zhirov | Found Alien Artifact 32122 | -4/Zhirov | Identified exit to Proximity Caves 32122 | -4/Zhirov | Entered Proximity Caves 32291 | -3/Proximity Caves | Discovered exit to Research (range 9) 32342 | -3/Proximity Caves | Entered Research 32342 | -3/Research | Evolved 2 slots: Utility x2 32343 | -3/Research | Identified exit to Armory 32343 | -3/Research | Identified exit to Research 32343 | -3/Research | Identified exit to Testing 32344 | -3/Research | Loaded intel: 76 trap records 32346 | -3/Research | Loaded intel: 6 scanalyzer locations 32378 | -3/Research | Build established: Hacker-Scout 32398 | -3/Research | Identified Dimensional Node Initializer 32398 | -3/Research | Initialized slip node 32731 | -3/Research | Entered another Research area 32731 | -2/Research | Accompanied by 1 ally 32731 | -2/Research | Evolved 2 slots: Utility x2 32732 | -2/Research | Identified exit to Access 32733 | -2/Research | Lost 3 parts (1p2u) 32735 | -2/Research | Identified exit to Quarantine 32910 | -2/Research | Spotted B-90 Cyclops 32976 | -2/Research | Entered Quarantine 32983 | -2/Quarantine | Watched by a mysterious "MATRIX" hacker. 33006 | -2/Quarantine | Found Alien Artifact 33006 | -2/Quarantine | Identified Core Reset Matrix 33006 | -2/Quarantine | Identified Transdimensional Reconstructor 33006 | -2/Quarantine | Used Core Reset Matrix 33010 | -2/Quarantine | Detected hypermatrix surge 33010 | -2/Quarantine | Sensed 16 artifacts in vicinity 33069 | -2/Quarantine | Found Subatomic Replicator 33070 | -2/Quarantine | Used Subatomic Replicator to create Supercharged TR 33201 | -2/Quarantine | Met incapacitated Sigix Warrior 33201 | -2/Quarantine | Lockdown squad dispatched 33233 | -2/Quarantine | Spotted Lightning 33240 | -2/Quarantine | Spotted Lightning 33242 | -2/Quarantine | Spotted Lightning 33244 | -2/Quarantine | Found Transdimensional Reconstructor 33247 | -2/Quarantine | Discovered exit to Access (range 12) 33250 | -2/Quarantine | Entered Access 33250 | -1/Access | Evolved 2 slots: Propulsion x1, Utility x1 33428 | -1/Access | Identified exit to Surface 33484 | -1/Access | Spotted B-99 Colossus 33615 | -1/Access | Warped through subspace 33675 | -1/Access | Core integrity fell below 50% 33687 | -1/Access | System corruption reached 10% 33687 | -1/Access | Warped through subspace 33690 | -1/Access | Emitted hypermatrix ping 33694 | -1/Access | Spotted B-99 Colossus 33695 | -1/Access | Assembled emerged from beneath the floor 33696 | -1/Access | Assembled emerged from beneath the floor 33716 | -1/Access | Core integrity fell below 20% 33723 | -1/Access | Destroyed by P-80 Master with Gamma Rifle Last Messages --------------- 33716_ Slug penetrates Wall. 33716_ Penetrated by Slug. 33716_ Slug penetrates Wall. 33716_ Penetrated by Slug. 33717_ B-99 Colossus exits siege mode. 33717_ Slug penetrates Wall. 33717_ as-37593 destroyed. 33717_ Slug penetrates as-43784. 33717_ Slug penetrates Wall. 33718_ Penetrated by Slug. 33718_ Wave Collapse Detector explodes. 33719_ Adv. System Shield destroyed. 33719_ K-01 Serf collects debris. 33720_ Slug penetrates R-10 Processor. 33720_ Slug penetrates as-43784. 33720_ as-43784 destroyed. 33721_ O-32 Director: "IFF HANDSHAKE FAILED. SECURING TERMINAL." 33723_ The unstable cave ceiling collapses. 33723_ Slug penetrates Wall. 33723_ K-01 Serf collects debris. Map ----- +----------------------------------------------------+ | ?????????????????????# "" # #??? ?? | | ?????????????????????############## #???"""" | | ?????????????????????############?# #??"""""" | | ?????????????????????# # #??""F "" | | ?????????????????????# # #? """ | | ?????????????????????# + +? | | ?????????????????????# # # | | ?????????????????????# # # !!! | | ?????????????????????# ?# + !! = | | ?????????????????????# ?# # !! | | ?????????????????????# ??# # | | ?????????????????????# ??# #?########### | | ?????????????????????# ???# #???????????? | | ?????????????????????# ???# ############# | | ?????????????????????# ????# | | ????????????????????###########???# | | ????????????????????# = #???# ###### | | ??????????###########= #???# #????? | | ??????????# # ! #???# #????? | | ??????????# # #???# #????? | | ??????????# ##+############ #????? | | ??????????# + p #????? | | #?????????# # p #????? | | # ????????# ## k #### #????? | | # ???????# ""T"" ## #??? #????? | | # ??????# """"" ## o@ ##??? #????? | | # ################## #??? +????? | | # h ##????#????? | | + #?????????? | | # %% ################## #?????????? | | # %###?????????????# #?????????? | | # % #?????????????# ##?????????? | | # "############## #??????????? | | # %##"" % # #??????????? | | # ! / !! % # #??????????? | | # # !! *[= + #??????????? | | ##+###### # ! %!%[%! # k #??????????? | | ????????# # |!!% #* #??????????? | | ????????# # !% %+%! #??????????? | | ????????# # *% "!% " +??????????? | | ????????# # = # """ #??????????? | | ????????# # # """ #??????????? | | ????????# # # " #??????????? | | ????????# # # #??????????? | | ????????# # # #??????????? | | ????????# ############## #??????????? | | ????????# #???????### " #??????????? | | ????????#+##### ###?????# """ #??????????? | | ?????????????# ####### """ #????????? | | ?????????????# " #????????? | +----------------------------------------------------+ Best States ------------- Heat Dissipation 72 Coolant Potential 120 Energy Generation 25 Energy Capacity 370 Matter Stores 300 Matter Capacity 300 Sight Range 20 Robot Scan Range 16 Terrain Scan Range 24 Terrain Scan Density 10 Armor Coverage 950 Resistance: EM 25 Weapon Shielding 33 Phase Shifting 20 Evasion (%) 66 Melee Accuracy 45 Launcher Accuracy 30 Recoil Reduction 3 Offensive Hacking 30 Defensive Hacking 24 Item Schematics ----------------- None Robot Schematics ------------------ None Fabricated ------------ Nothing Repaired ---------- Nothing Studied --------- None Alien Tech Used ----------------- Integrated Dissipator Dimensional Node Initializer Core Reset Matrix Subatomic Replicator Transdimensional Reconstructor Supercharged TR Achievements -------------- Loot Taster Challenges ------------ None Game ------ Seed InertialFieldthrustChainsaw Manual? 0 Play Time 02:47:15 Cumulative 139.9 hours Start 2026.03.01 @ 14:52:36 End 2026.03.01 @ 17:43:33 Sessions 1 Manual Loads 0 Difficulty Rogue Special Mode None Game No. 90 Rogue 86 Adventurer 4 Explorer 0 Win Type - Total 7 Types 7/0/0/0/0/0/0/0/0/0 Lore% 78 Gallery% 55 Achievement% 47 Wizard Run 0 Options --------- Layout 0 ASCII 0 Keyboard 1 Movement Vi Keybinds 0 Fullscreen 0 Font 16/SmallcapsGlow Map View 76x50 Zoom Use 0% Tactical HUD 1 Map Filters NONE Filters NONE Steam 1 RUN: f9d4e341-4bf9-422b-ad75-f224250db233